fUST/lending_fUST_20240826
["ID","MTS","AMOUNT","RATE_DAILY","PERIOD"]
[336024817,1724670638730,-810.81,0.00013106,2]
[336024820,1724670638740,-13415.44013959,0.00013106,2]
[336024981,1724670640592,-603.98478864,0.00013106,2]
[336024997,1724670640756,-6821.35616466,0.00013106,2]
[336025279,1724670643677,-7242.47890711,0.00013106,2]
[336025281,1724670643687,-500.0,0.00013106,2]
[336025283,1724670643696,-1246.84,0.00013106,2]
[336025285,1724670643710,-830.67,0.00013106,2]
[336025287,1724670643720,-1014.15,0.00013106,2]
[336025289,1724670643730,-500.0,0.00013106,2]
[336025291,1724670643739,-500.0,0.00013106,2]
[336025294,1724670643749,-509.19,0.00013106,2]
[336025296,1724670643758,-500.0,0.00013106,2]
[336025298,1724670643768,-500.0,0.00013106,2]
[336025300,1724670643777,-500.0,0.00013106,2]
[336025302,1724670643786,-590.42,0.00013106,2]
[336025304,1724670643796,-500.0,0.00013106,2]
[336025306,1724670643805,-500.0,0.00013106,2]
[336025308,1724670643816,-500.0,0.00013106,2]
[336025309,1724670643825,-500.0,0.00013106,2]
[336025311,1724670643834,-1095.18,0.00013106,2]
[336025313,1724670643844,-500.0,0.00013106,2]
[336025315,1724670643853,-527.0,0.00013106,2]
[336025317,1724670643863,-757.18,0.00013106,2]
[336025319,1724670643873,-766.25,0.00013106,2]
[336025321,1724670643883,-500.0,0.00013107,2]
[336025323,1724670643892,-500.0,0.00013107,2]
[336025324,1724670643901,-500.15245384,0.00013107,2]
[336025326,1724670643911,-500.0,0.00013107,2]
[336025328,1724670643920,-500.0,0.00013107,2]
[336025330,1724670643930,-500.0,0.00013107,2]
[336025332,1724670643939,-1000.0,0.00013107,2]
[336025334,1724670643948,-500.0,0.00013107,2]
[336025336,1724670643958,-536.66,0.00013107,2]
[336025338,1724670643968,-545.85,0.00013107,2]
[336025340,1724670643978,-968.07,0.00013107,2]
[336025342,1724670643988,-500.0,0.00013107,2]
[336025344,1724670643998,-500.0,0.00013107,2]
[336025346,1724670644009,-1160.79,0.00013107,2]
[336025348,1724670644018,-500.0,0.00013107,2]
[336025350,1724670644028,-923.5,0.00013107,2]
[336025352,1724670644037,-500.0,0.00013107,2]
[336025354,1724670644047,-500.0,0.00013107,2]
[336025356,1724670644057,-500.72599331,0.00013107,2]
[336025358,1724670644066,-838.69,0.00013107,2]
[336025360,1724670644075,-8694.27,0.00013107,2]
[336025362,1724670644085,-1738.25205908,0.00013107,2]
[336025580,1724670646622,-598.30034209,0.00013107,2]
[336025833,1724670649159,-6357.71759883,0.00013107,2]
[336025835,1724670649170,-8694.27,0.00013107,2]
[336025837,1724670649180,-500.0,0.00013107,2]
[336025839,1724670649189,-500.0,0.00013107,2]
[336025841,1724670649198,-500.0,0.00013107,2]
[336025843,1724670649208,-950.07,0.00013107,2]
[336025845,1724670649219,-1192.31,0.00013107,2]
[336025847,1724670649229,-500.0,0.00013107,2]
[336025849,1724670649240,-651.55,0.00013107,2]
[336025851,1724670649250,-500.0,0.00013107,2]
[336025853,1724670649261,-500.0,0.00013107,2]
[336025855,1724670649271,-500.0,0.00013107,2]
[336025858,1724670649281,-500.0,0.00013107,2]
[336025860,1724670649291,-503.38748116,0.00013107,2]
[336025862,1724670649301,-500.0,0.00013107,2]
[336025864,1724670649310,-500.0,0.00013107,2]
[336025865,1724670649320,-500.37530072,0.00013107,2]
[336025867,1724670649329,-500.0,0.00013107,2]
[336025869,1724670649338,-500.0,0.00013107,2]
[336025871,1724670649348,-314.53913913,0.00013107,2]
[336027959,1724671319122,1075.78750041,0.0001,2]
[336027960,1724671325836,-300.0,0.0001255,2]
[336027961,1724671325860,-1450.0,0.00012551,2]
[336028055,1724671647116,-1036.9657843,0.00011854,2]
[336028056,1724671647139,-22009.3809006,0.0001212,2]
[336028057,1724671647168,-300.0,0.00012162,2]
[336028058,1724671647191,-1199.93360904,0.00012551,2]
[336028059,1724671647212,-1065.96939496,0.00012551,2]
[336028060,1724671647234,-542.59558938,0.00012551,2]
[336028061,1724671647255,-3354.73421651,0.00012551,2]
[336028062,1724671647278,-990.91458187,0.00012551,2]
[336028063,1724671647300,-1309.86966635,0.00012551,2]
[336028064,1724671647321,-188.34866886,0.00012629,2]
[336028065,1724671647345,-4005.39145026,0.00012641,2]
[336028066,1724671647366,-535.23487752,0.00012689,2]
[336028067,1724671647388,-187.26343479,0.00012779,2]
[336028068,1724671647410,-277.56063503,0.00012782,2]
[336028069,1724671647434,-173.54986478,0.000128,2]
[336028080,1724671758181,-744.4024012,0.00011978,2]
[336028083,1724671805676,160.477614,0.00012016,2]
[336028084,1724671827482,1309.86966635,0.00011978,2]
[336028113,1724671832478,-160.477614,0.00012079,2]
[336028116,1724671832487,-160.477614,0.00012142,2]
[336028117,1724671832497,-160.477614,0.00012204,2]
[336028119,1724671832507,-160.477614,0.00012267,2]
[336028121,1724671832517,-160.477614,0.0001233,2]
[336028123,1724671832527,-160.477614,0.00012392,2]
[336028125,1724671832537,-160.477614,0.00012455,2]
[336028127,1724671832547,-160.477614,0.00012518,2]
[336028129,1724671832557,-160.477614,0.0001258,2]
[336028131,1724671832566,-160.477614,0.00012643,2]
[336028133,1724671832576,-156.90029869,0.00012689,2]
[336028135,1724671832586,-233.32701532,0.000128,2]
[336028137,1724671832595,-155.03734822,0.00012898,2]
[336028139,1724671832605,-217.9205408,0.00012898,2]
[336028141,1724671832615,-238.25251898,0.00012899,2]
[336028144,1724671832627,-61.74748102,0.00012899,2]
[336028146,1724671832637,-8954.02515416,0.000129,2]
[336028148,1724671832647,-695.14803561,0.00012934,2]
[336028150,1724671832658,-629.437648,0.00012971,2]
[336028152,1724671832667,-65.00643771,0.00012985,2]
[336028192,1724671838538,-320.45042609,0.00012985,2]
[336028203,1724671838632,-220.14378288,0.00012985,2]
[336028205,1724671838642,-21604.4832767,0.00012989,2]
[336028207,1724671838652,-217.9205408,0.00012995,2]
[336028209,1724671838661,-565.81,0.00012995,2]
[336028211,1724671838671,-500.0,0.00012995,2]
[336028213,1724671838680,-500.0,0.00012995,2]
[336028215,1724671838689,-500.0,0.00012995,2]
[336028217,1724671838699,-500.0,0.00012995,2]
[336028219,1724671838711,-500.0,0.00012995,2]
[336028220,1724671838720,-500.0,0.00012995,2]
[336028225,1724671838730,-500.0,0.00012995,2]
[336028227,1724671838739,-500.0,0.00012995,2]
[336028229,1724671838749,-21604.4832767,0.00012996,2]
[336028230,1724671838758,-1155.47867488,0.00012997,2]
[336028232,1724671838768,-6561.20239841,0.00012997,2]
[336028235,1724671838783,-2368.52091969,0.00012997,2]
[336028241,1724671838835,-79958.2766819,0.00012997,2]
[336028243,1724671838846,-553.74,0.00012998,2]
[336028245,1724671838858,-704.73,0.00012998,2]
[336028247,1724671838869,-500.0,0.00012998,2]
[336028249,1724671838878,-805.73,0.00012998,2]
[336028251,1724671838890,-500.0,0.00012998,2]
[336028254,1724671838900,-717.11,0.00012998,2]
[336028256,1724671838911,-646.94,0.00012998,2]
[336028258,1724671838930,-500.0,0.00012998,2]
[336028260,1724671838940,-528.01,0.00012998,2]
[336028262,1724671838952,-556.02,0.00012998,2]
[336028264,1724671838964,-500.0,0.00012998,2]
[336028266,1724671838975,-597.25,0.00012998,2]
[336028268,1724671838986,-564.22,0.00012999,2]
[336028270,1724671838995,-744.58,0.00012999,2]
[336028272,1724671839005,-500.0,0.00012999,2]
[336028274,1724671839016,-772.79,0.00012999,2]
[336028276,1724671839027,-6882.96,0.00012999,2]
[336028278,1724671839036,-500.0,0.00012999,2]
[336028280,1724671839046,-946.88,0.00012999,2]
[336028282,1724671839055,-500.0,0.00012999,2]
[336028284,1724671839065,-500.0,0.00012999,2]
[336028286,1724671839074,-689.93,0.00012999,2]
[336028288,1724671839084,-2024.63,0.00012999,2]
[336028290,1724671839094,-1591.86,0.00012999,2]
[336028292,1724671839104,-1245.63,0.00012999,2]
[336028294,1724671839113,-501.53,0.00012999,2]
[336028296,1724671839123,-500.0,0.00012999,2]
[336028298,1724671839132,-500.0,0.00012999,2]
[336028300,1724671839141,-500.0,0.00012999,2]
[336028302,1724671839151,-26913.13,0.00012999,2]
[336028304,1724671839160,-567.6,0.00012999,2]
[336028306,1724671839170,-777.03,0.00012999,2]
[336028308,1724671839181,-1194.89,0.00012999,2]
[336028310,1724671839192,-500.0,0.00012999,2]
[336028312,1724671839201,-971.9,0.00012999,2]
[336028314,1724671839213,-500.0,0.00012999,2]
[336028316,1724671839223,-796.06,0.00012999,2]
[336028319,1724671839237,-500.0,0.00012999,2]
[336028321,1724671839247,-500.0,0.00012999,2]
[336028323,1724671839258,-500.0,0.00012999,2]
[336028325,1724671839270,-500.0,0.00012999,2]
[336028327,1724671839280,-500.0,0.00012999,2]
[336028329,1724671839290,-500.0,0.00012999,2]
[336028331,1724671839300,-500.0,0.00012999,2]
[336028333,1724671839310,-500.0,0.00012999,2]
[336028335,1724671839324,-505.04,0.00012999,2]
[336028337,1724671839335,-1049.55,0.00012999,2]
[336028339,1724671839344,-7250.58,0.00013,2]
[336028341,1724671839354,-9765.70048224,0.00013,2]
[336028343,1724671839364,-207.7743686,0.00013,2]
[336028345,1724671839373,-5000.0,0.00013,13]
[336028347,1724671839383,-3000.0,0.00013006,2]
[336028349,1724671839395,-20000.0,0.00013006,2]
[336028351,1724671839404,-358.88814414,0.00013073,2]
[336028353,1724671839415,-500.21206834,0.00013073,2]
[336028355,1724671839426,-500.0,0.00013073,2]
[336028357,1724671839436,-500.0,0.00013073,2]
[336028360,1724671839446,-500.0,0.00013073,2]
[336028362,1724671839456,-43208.9665535,0.00013076,2]
[336028364,1724671839467,-21604.4832767,0.00013085,2]
[336028365,1724671839479,-86417.933107,0.00013086,2]
[336028368,1724671839490,-819.3,0.00013086,2]
[336028370,1724671839500,-500.0,0.00013086,2]
[336028372,1724671839510,-500.0,0.00013086,2]
[336028374,1724671839520,-500.0,0.00013086,2]
[336028376,1724671839530,-500.0,0.00013086,2]
[336028378,1724671839539,-500.0,0.00013086,2]
[336028380,1724671839549,-1182.52,0.00013086,2]
[336028382,1724671839559,-500.0,0.00013086,2]
[336028384,1724671839569,-722.2,0.00013086,2]
[336028386,1724671839579,-500.0,0.00013086,2]
[336028388,1724671839589,-649.49,0.00013086,2]
[336028390,1724671839600,-500.0,0.00013086,2]
[336028392,1724671839611,-500.0,0.00013086,2]
[336028394,1724671839621,-500.0,0.00013086,2]
[336028396,1724671839631,-500.0,0.00013086,2]
[336028398,1724671839642,-519.36598412,0.00013086,2]
[336028400,1724671839653,-500.0,0.00013086,2]
[336028402,1724671839663,-1011.51,0.00013086,2]
[336028404,1724671839674,-1044.04,0.00013086,2]
[336028407,1724671839686,-500.0,0.00013086,2]
[336028409,1724671839697,-500.0,0.00013086,2]
[336028411,1724671839707,-738.97,0.00013086,2]
[336028413,1724671839717,-776.66,0.00013086,2]
[336028415,1724671839726,-695.47,0.00013086,2]
[336028417,1724671839736,-888.32,0.00013086,2]
[336028419,1724671839747,-500.0,0.00013086,2]
[336028421,1724671839757,-761.68,0.00013086,2]
[336028423,1724671839768,-500.0,0.00013086,2]
[336028425,1724671839777,-500.0,0.00013086,2]
[336028427,1724671839788,-580.58,0.00013086,2]
[336028429,1724671839798,-1090.82,0.00013086,2]
[336028431,1724671839807,-500.0,0.00013086,2]
[336028433,1724671839817,-617.42,0.00013086,2]
[336028435,1724671839828,-644.13,0.00013086,2]
[336028437,1724671839838,-500.0,0.00013086,2]
[336028439,1724671839848,-1070.95,0.00013086,2]
[336028441,1724671839858,-163.41330039,0.00013086,2]
[336028443,1724671839868,-500.0,0.00013086,2]
[336028445,1724671839880,-500.0,0.00013086,2]
[336028447,1724671839889,-500.0,0.00013086,2]
[336028449,1724671839899,-520.87594148,0.00013086,2]
[336028451,1724671839910,-500.0,0.00013086,2]
[336028453,1724671839919,-510.28937839,0.00013086,2]
[336028456,1724671839930,-500.0,0.00013086,2]
[336028459,1724671839940,-228.6236789,0.00013086,2]
[336028461,1724671839957,-333.3063211,0.00013086,2]
[336028463,1724671839968,-500.94892432,0.00013086,2]
[336028465,1724671839977,-526.3,0.00013086,2]
[336028468,1724671839987,-500.0,0.00013086,2]
[336028470,1724671839998,-573.24390998,0.00013086,2]
[336028471,1724671840007,-500.0,0.00013086,2]
[336028473,1724671840017,-500.0,0.00013086,2]
[336028476,1724671840027,-673.93,0.00013086,2]
[336028478,1724671840037,-500.0,0.00013086,2]
[336028480,1724671840046,-500.0,0.00013086,2]
[336028482,1724671840056,-1000.0,0.00013086,2]
[336028484,1724671840066,-500.0,0.00013086,2]
[336028486,1724671840075,-980.24,0.00013086,2]
[336028488,1724671840085,-500.0,0.00013086,2]
[336028490,1724671840095,-500.0,0.00013086,2]
[336028492,1724671840104,-749.02,0.00013086,2]
[336028494,1724671840114,-500.0,0.00013086,2]
[336028498,1724671840133,-1329.42,0.00013086,2]
[336028500,1724671840143,-500.0,0.00013086,2]
[336028502,1724671840153,-734.32,0.00013086,2]
[336028504,1724671840164,-715.85,0.00013086,2]
[336028506,1724671840174,-500.0,0.00013086,2]
[336028508,1724671840184,-1396.07040682,0.00013086,2]
[336028511,1724671840201,-253.51959318,0.00013086,2]
[336028513,1724671840213,-500.0,0.00013086,2]
[336028515,1724671840224,-500.0,0.00013086,2]
[336028517,1724671840234,-500.0,0.00013086,2]
[336028519,1724671840246,-695.91,0.00013086,2]
[336028521,1724671840256,-632.28,0.00013086,2]
[336028523,1724671840268,-300.57300942,0.00013086,2]
[336028525,1724671840279,-1416.64,0.00013086,2]
[336028527,1724671840289,-924.48,0.00013086,2]
[336028529,1724671840299,-500.0,0.00013086,2]
[336028531,1724671840308,-6882.96,0.00013086,2]
[336028533,1724671840318,-794.56,0.00013086,2]
[336028535,1724671840328,-514.3,0.00013086,2]
[336028538,1724671840338,-500.0,0.00013086,2]
[336028539,1724671840348,-500.0,0.00013086,2]
[336028541,1724671840358,-811.72,0.00013086,2]
[336028543,1724671840368,-885.02,0.00013086,2]
[336028545,1724671840378,-624.4,0.00013086,2]
[336028547,1724671840390,-644.31,0.00013086,2]
[336028549,1724671840403,-500.0,0.00013086,2]
[336028552,1724671840414,-500.0,0.00013086,2]
[336028554,1724671840424,-500.0,0.00013086,2]
[336028556,1724671840434,-910.48,0.00013086,2]
[336028558,1724671840446,-500.0,0.00013086,2]
[336028560,1724671840455,-888.91,0.00013086,2]
[336028562,1724671840468,-632.3,0.00013086,2]
[336028564,1724671840481,-461.76513693,0.00013086,2]
[336028566,1724671840492,-1383.75,0.00013086,2]
[336028568,1724671840502,-500.0,0.00013086,2]
[336028570,1724671840512,-867.69,0.00013086,2]
[336028572,1724671840522,-601.28,0.00013086,2]
[336028574,1724671840532,-416.30693497,0.00013086,2]
[336028618,1724671840950,-500.0,0.00012995,2]
[336028621,1724671840962,-1128.76306503,0.00013086,2]
[336028623,1724671840973,-500.0,0.00013086,2]
[336028625,1724671840983,-1958.19,0.00013086,2]
[336028627,1724671840993,-589.17,0.00013086,2]
[336028629,1724671841003,-500.0,0.00013086,2]
[336028631,1724671841012,-500.0,0.00013086,2]
[336028633,1724671841022,-500.0,0.00013086,2]
[336028635,1724671841032,-500.0,0.00013086,2]
[336028637,1724671841042,-500.0,0.00013086,2]
[336028639,1724671841053,-824.7,0.00013086,2]
[336028642,1724671841065,-1133.3,0.00013086,2]
[336028644,1724671841074,-615.61381898,0.00013086,2]
[336028646,1724671841084,-500.0,0.00013086,2]
[336028648,1724671841093,-500.0,0.00013086,2]
[336028650,1724671841103,-500.0,0.00013086,2]
[336028652,1724671841112,-638.96,0.00013086,2]
[336028654,1724671841123,-650.33,0.00013086,2]
[336028656,1724671841133,-562.92,0.00013086,2]
[336028658,1724671841143,-982.71,0.00013086,2]
[336028660,1724671841153,-500.0,0.00013086,2]
[336028662,1724671841163,-752.87,0.00013086,2]
[336028664,1724671841173,-500.0,0.00013086,2]
[336028666,1724671841183,-500.0,0.00013086,2]
[336028668,1724671841193,-500.0,0.00013086,2]
[336028670,1724671841205,-151.0,0.00013086,2]
[336028673,1724671841217,-500.97078527,0.00013086,2]
[336028675,1724671841227,-151.0,0.00013086,2]
[336028677,1724671841238,-500.0,0.00013086,2]
[336028679,1724671841247,-1373.56319,0.00013086,2]
[336028681,1724671841258,-1373.56319,0.00013086,2]
[336028683,1724671841271,-500.0,0.00013086,2]
[336028685,1724671841281,-500.0,0.00013086,2]
[336028687,1724671841291,-1373.56319,0.00013086,2]
[336028689,1724671841301,-1373.56319,0.00013086,2]
[336028691,1724671841310,-755.23,0.00013086,2]
[336028693,1724671841321,-500.0,0.00013086,2]
[336028696,1724671841332,-1045.52,0.00013086,2]
[336028697,1724671841343,-500.0,0.00013086,2]
[336028699,1724671841353,-540.83,0.00013086,2]
[336028701,1724671841364,-500.0,0.00013086,2]
[336028703,1724671841373,-899.54,0.00013086,2]
[336028705,1724671841384,-567.72,0.00013086,2]
[336028707,1724671841398,-232.882293,0.00013086,2]
[336028709,1724671841409,-232.882293,0.00013086,2]
[336028711,1724671841419,-500.0,0.00013086,2]
[336028713,1724671841430,-500.0,0.00013086,2]
[336028716,1724671841443,-232.882293,0.00013086,2]
[336028718,1724671841454,-232.882293,0.00013086,2]
[336028720,1724671841465,-2931.83,0.00013086,2]
[336028722,1724671841476,-500.0,0.00013086,2]
[336028724,1724671841486,-500.0,0.00013086,2]
[336028726,1724671841496,-662.09,0.00013086,2]
[336028728,1724671841506,-501.7957613,0.00013086,2]
[336028730,1724671841516,-673.66,0.00013086,2]
[336028732,1724671841526,-500.0,0.00013086,2]
[336028734,1724671841536,-500.0,0.00013086,2]
[336028736,1724671841546,-43208.9665535,0.00013087,2]
[336028738,1724671841556,-151.0,0.00013087,2]
[336028739,1724671841566,-151.0,0.00013087,2]
[336028740,1724671841576,-376.245859,0.00013087,2]
[336028741,1724671841585,-376.245859,0.00013087,2]
[336028742,1724671841596,-3869.064228,0.00013087,2]
[336028743,1724671841607,-3869.064228,0.00013087,2]
[336028744,1724671841617,-151.0,0.00013087,2]
[336028745,1724671841627,-151.0,0.00013087,2]
[336028746,1724671841637,-867.778648,0.00013087,2]
[336028747,1724671841647,-867.778648,0.00013087,2]
[336028748,1724671841657,-6882.96,0.00013094,2]
[336028749,1724671841668,-1373.56319,0.00013094,2]
[336028750,1724671841677,-1373.56319,0.00013094,2]
[336028751,1724671841687,-232.882293,0.00013094,2]
[336028752,1724671841697,-232.882293,0.00013094,2]
[336028753,1724671841706,-1329.42,0.00013095,2]
[336028754,1724671841722,-6882.96,0.00013095,2]
[336028755,1724671841733,-6882.96,0.00013095,2]
[336028756,1724671841742,-6882.96,0.00013095,2]
[336028758,1724671841751,-500.0,0.00013095,2]
[336028759,1724671841760,-685.95,0.00013095,2]
[336028761,1724671841770,-656.07,0.00013095,2]
[336028763,1724671841780,-1545.07,0.00013095,2]
[336028764,1724671841790,-213.39127348,0.00013095,2]
[336028766,1724671841799,-500.0,0.00013095,2]
[336028768,1724671841809,-500.0,0.00013096,2]
[336028771,1724671841819,-500.0,0.00013096,2]
[336028773,1724671841829,-500.0,0.00013096,2]
[336028775,1724671841839,-656.79,0.00013096,2]
[336028777,1724671841849,-500.0,0.00013096,2]
[336028779,1724671841860,-500.0,0.00013096,2]
[336028781,1724671841870,-649.55,0.00013096,2]
[336028783,1724671841879,-500.0,0.00013096,2]
[336028785,1724671841889,-500.0,0.00013096,2]
[336028787,1724671841898,-500.0,0.00013096,2]
[336028789,1724671841908,-500.0,0.00013096,2]
[336028791,1724671841918,-500.0,0.00013096,2]
[336028793,1724671841927,-500.0,0.00013096,2]
[336028795,1724671841938,-500.0,0.00013096,2]
[336028797,1724671841947,-500.0,0.00013096,2]
[336028799,1724671841957,-500.0,0.00013096,2]
[336028801,1724671841967,-500.0,0.00013096,2]
[336028803,1724671841976,-618.56926949,0.00013096,2]
[336028804,1724671841986,-500.0,0.00013096,2]
[336028806,1724671841996,-500.0,0.00013096,2]
[336028808,1724671842005,-500.0,0.00013096,2]
[336028810,1724671842015,-500.0,0.00013096,2]
[336028812,1724671842026,-500.0,0.00013096,2]
[336028815,1724671842038,-500.0,0.00013096,2]
[336028817,1724671842049,-500.0,0.00013096,2]
[336028819,1724671842061,-500.0,0.00013096,2]
[336028821,1724671842070,-523.01492503,0.00013096,2]
[336028823,1724671842080,-500.0,0.00013096,2]
[336028825,1724671842089,-500.0,0.00013096,2]
[336028837,1724671842297,-203.43796579,0.00013096,2]
[336028838,1724671842306,-500.0,0.00013096,2]
[336028839,1724671842316,-500.0,0.00013096,2]
[336028840,1724671842325,-500.0,0.00013096,2]
[336028841,1724671842335,-500.0,0.00013096,2]
[336028842,1724671842345,-528.03,0.00013096,2]
[336028844,1724671842354,-507.45,0.00013096,2]
[336028846,1724671842364,-511.03395608,0.00013096,2]
[336028848,1724671842373,-500.0,0.00013096,2]
[336028849,1724671842382,-500.0,0.00013096,2]
[336028850,1724671842396,-500.0,0.00013096,2]
[336028851,1724671842408,-500.0,0.00013096,2]
[336028852,1724671842418,-500.0,0.00013096,2]
[336028854,1724671842428,-500.0,0.00013096,2]
[336028855,1724671842438,-500.0,0.00013096,2]
[336028856,1724671842448,-525.17762807,0.00013096,2]
[336028857,1724671842458,-500.0,0.00013096,2]
[336028858,1724671842471,-714.42,0.00013096,2]
[336028859,1724671842480,-500.0,0.00013096,2]
[336028860,1724671842490,-500.0,0.00013096,2]
[336028861,1724671842499,-500.0,0.00013096,2]
[336028862,1724671842509,-500.0,0.00013096,2]
[336028863,1724671842518,-1434.42,0.00013096,2]
[336028864,1724671842527,-1434.42,0.00013096,2]
[336028865,1724671842537,-500.0,0.00013096,2]
[336028866,1724671842546,-500.0,0.00013096,2]
[336028867,1724671842556,-500.0,0.00013096,2]
[336028868,1724671842565,-500.0,0.00013096,2]
[336028869,1724671842574,-698.05,0.00013096,2]
[336028870,1724671842583,-500.0,0.00013096,2]
[336028871,1724671842594,-500.0,0.00013096,2]
[336028872,1724671842603,-500.0,0.00013096,2]
[336028873,1724671842613,-500.0,0.00013096,2]
[336028874,1724671842624,-500.0,0.00013096,2]
[336028875,1724671842633,-500.0,0.00013096,2]
[336028876,1724671842643,-650.5,0.00013096,2]
[336028877,1724671842652,-500.0,0.00013096,2]
[336028878,1724671842662,-502.75193675,0.00013096,2]
[336028879,1724671842671,-500.0,0.00013096,2]
[336028880,1724671842681,-500.0,0.00013096,2]
[336028881,1724671842690,-592.33934938,0.00013096,2]
[336028882,1724671842699,-500.0,0.00013096,2]
[336028883,1724671842708,-500.0,0.00013096,2]
[336028884,1724671842719,-500.0,0.00013096,2]
[336028885,1724671842728,-977.01,0.00013096,2]
[336028886,1724671842738,-500.0,0.00013096,2]
[336028887,1724671842748,-500.0,0.00013096,2]
[336028888,1724671842757,-500.0,0.00013096,2]
[336028889,1724671842767,-500.0,0.00013096,2]
[336028890,1724671842777,-500.0,0.00013096,2]
[336028891,1724671842785,-500.0,0.00013096,2]
[336028892,1724671842795,-500.0,0.00013096,2]
[336028893,1724671842804,-500.0,0.00013096,2]
[336028894,1724671842813,-384.31784247,0.00013096,2]
[336028895,1724671842823,-500.0,0.00013096,2]
[336028896,1724671842832,-500.0,0.00013096,2]
[336028897,1724671842841,-500.0,0.00013096,2]
[336028898,1724671842851,-500.0,0.00013096,2]
[336028899,1724671842862,-500.0,0.00013096,2]
[336028900,1724671842871,-500.0,0.00013096,2]
[336028901,1724671842880,-500.44982316,0.00013096,2]
[336028902,1724671842889,-500.0,0.00013096,2]
[336028903,1724671842898,-203.1712821,0.00013096,2]
[336028904,1724671842907,-500.0,0.00013096,2]
[336028905,1724671842916,-500.0,0.00013096,2]
[336028906,1724671842926,-500.0,0.00013096,2]
[336028907,1724671842935,-500.0,0.00013096,2]
[336028908,1724671842945,-1112.42,0.00013096,2]
[336028909,1724671842954,-501.097122,0.00013096,2]
[336028910,1724671842964,-500.0,0.00013096,2]
[336028911,1724671842974,-500.0,0.00013096,2]
[336028912,1724671842984,-500.0,0.00013096,2]
[336028913,1724671842993,-531.77,0.00013096,2]
[336028914,1724671843002,-500.0,0.00013096,2]
[336028915,1724671843012,-500.74342544,0.00013096,2]
[336028917,1724671843022,-500.0,0.00013096,2]
[336028918,1724671843031,-500.0,0.00013096,2]
[336028920,1724671843042,-500.0,0.00013096,2]
[336028922,1724671843051,-500.0,0.00013096,2]
[336028924,1724671843061,-500.0,0.00013096,2]
[336028925,1724671843070,-528.51238524,0.00013096,2]
[336028926,1724671843079,-500.0,0.00013096,2]
[336028927,1724671843088,-547.96049857,0.00013096,2]
[336028929,1724671843098,-500.0,0.00013096,2]
[336028930,1724671843107,-500.32335848,0.00013096,2]
[336028931,1724671843116,-500.0,0.00013096,2]
[336028932,1724671843126,-500.86077,0.00013096,2]
[336028933,1724671843135,-500.0,0.00013096,2]
[336028934,1724671843144,-500.0,0.00013096,2]
[336028935,1724671843154,-500.0,0.00013096,2]
[336028937,1724671843163,-500.52711479,0.00013096,2]
[336028939,1724671843172,-500.37794862,0.00013096,2]
[336028941,1724671843181,-500.89650638,0.00013096,2]
[336028942,1724671843191,-500.0,0.00013096,2]
[336028943,1724671843200,-500.0,0.00013096,2]
[336028944,1724671843209,-500.0,0.00013096,2]
[336028945,1724671843220,-500.0,0.00013096,2]
[336028946,1724671843230,-1142.63,0.00013096,2]
[336028947,1724671843239,-500.0,0.00013096,2]
[336028948,1724671843249,-161.61119404,0.00013096,2]